bitfinex-derivatives/quotes_BTCF0:USTF0_20251210
["timestamp","ask_amount","ask_price","bid_price","bid_amount"]
[1765409554427,0.1720616,92220.0,92219.0,0.51079268]
[1765409554428,0.1740616,92220.0,92219.0,0.51079268]
[1765409555311,0.1750616,92220.0,92219.0,0.51079268]
[1765409559414,0.1750616,92220.0,92219.0,0.87159268]
[1765409560924,0.1750616,92220.0,92219.0,0.51079268]
[1765409561825,0.16422,92220.0,92219.0,0.51079268]
[1765409565325,0.16422,92220.0,92219.0,0.54109742]
[1765409565922,0.12599,92220.0,92219.0,0.54109742]
[1765409566826,0.16422,92220.0,92219.0,0.54109742]
[1765409567423,0.06375,92220.0,92219.0,0.54109742]
[1765409567632,0.16422,92220.0,92219.0,0.54109742]
[1765409569716,0.16422,92220.0,92219.0,0.41546742]
[1765409569913,0.52502,92220.0,92219.0,0.00116268]
[1765409570515,0.52502,92220.0,92207.0,0.50348]
[1765409570516,0.133833,92208.0,92207.0,0.15487779]
[1765409570719,0.133833,92208.0,92207.0,0.15601083]
[1765409571615,0.134833,92208.0,92207.0,0.15701083]
[1765409571823,0.134833,92208.0,92207.0,0.15801083]
[1765409572021,0.134833,92208.0,92207.0,0.09436083]
[1765409572232,0.134833,92208.0,92207.0,0.15801083]
[1765409573127,0.134833,92208.0,92207.0,0.03238083]
[1765409573323,0.495633,92208.0,92207.0,0.002]
[1765409573523,0.494633,92208.0,92207.0,0.09339639]
[1765409573832,0.134833,92208.0,92207.0,0.15804639]
[1765409574423,0.134833,92208.0,92207.0,0.002]
[1765409576630,0.134833,92208.0,92207.0,0.12763]
[1765409581235,0.001,92208.0,92207.0,0.15916428]
[1765409589446,0.001,92208.0,92207.0,0.19810202]
[1765409591839,0.001,92208.0,92207.0,0.15916428]
[1765409592047,0.00016268,92217.0,92216.0,0.1315621]
[1765409592341,0.00016268,92217.0,92216.0,0.66661638]
[1765409593243,0.00216268,92217.0,92216.0,0.66861638]
[1765409593438,0.00516268,92217.0,92216.0,0.66861638]
[1765409594448,0.00316268,92217.0,92216.0,0.66861638]
[1765409594946,0.00116268,92217.0,92216.0,0.66861638]
[1765409595349,0.12090268,92217.0,92216.0,0.66861638]
[1765409595644,0.11990268,92217.0,92216.0,0.66761638]
[1765409595850,0.12090268,92217.0,92216.0,0.66861638]
[1765409596248,0.12090268,92217.0,92216.0,0.65777428]
[1765409599858,0.12090268,92217.0,92216.0,0.66161647]
[1765409601258,0.48170268,92217.0,92216.0,0.66161647]
[1765409601763,0.48170268,92217.0,92216.0,0.69084488]
[1765409603658,0.49254468,92217.0,92216.0,0.69084488]
[1765409604063,0.49254468,92217.0,92216.0,0.70168698]
[1765409605563,0.13174468,92217.0,92216.0,0.67245857]
[1765409608366,0.13174468,92217.0,92216.0,0.71140163]
[1765409609463,0.13174468,92217.0,92216.0,0.67245857]
[1765409620170,0.01200468,92217.0,92216.0,0.67245857]
[1765409620474,0.13408468,92217.0,92216.0,0.66161647]
[1765409628877,0.00116268,92217.0,92216.0,0.69122647]
[1765409629574,0.00116268,92217.0,92216.0,0.66161647]
[1765409630183,0.12324268,92217.0,92216.0,0.66161647]
[1765409630368,0.00116268,92217.0,92216.0,0.66161647]
[1765409630563,0.12324268,92217.0,92216.0,0.66161647]
[1765409635470,0.00116268,92217.0,92216.0,0.66161647]
[1765409635871,0.06410268,92217.0,92216.0,0.66161647]
[1765409637877,0.00116268,92217.0,92216.0,0.66161647]
[1765409648378,0.05961268,92217.0,92216.0,0.66161647]
[1765409648688,0.00116268,92217.0,92216.0,0.66161647]
[1765409649679,0.05961268,92217.0,92216.0,0.66161647]
[1765409652181,0.12140268,92217.0,92216.0,0.66161647]
[1765409669005,0.05998268,92217.0,92216.0,0.66161647]
[1765409669202,0.11720268,92217.0,92216.0,0.66161647]
[1765409674809,0.15230268,92217.0,92216.0,0.66161647]
[1765409675215,0.05998268,92217.0,92216.0,0.66161647]
[1765409675423,0.11720268,92217.0,92216.0,0.66161647]
[1765409680828,0.00116268,92217.0,92216.0,0.66161647]
[1765409684928,0.00116268,92217.0,92216.0,0.62624]
[1765409685130,0.00116268,92217.0,92216.0,0.6631255]
[1765409685331,0.11720268,92217.0,92216.0,0.6631255]
[1765409685528,0.15230268,92217.0,92216.0,0.6631255]
[1765409688335,0.15230268,92217.0,92216.0,0.721702]
[1765409689326,0.15230268,92217.0,92216.0,0.159232]
[1765409689527,0.15230268,92217.0,92216.0,0.0388855]
[1765409691418,0.15230268,92217.0,92216.0,0.002]
[1765409692220,0.15230268,92217.0,92216.0,0.03699596]
[1765409692424,0.15230268,92217.0,92216.0,0.002]
[1765409695034,0.51310268,92217.0,92216.0,0.002]
[1765409704147,0.51310268,92217.0,92216.0,0.10575]
[1765409705230,1.01642268,92217.0,92216.0,0.10575]
[1765409705839,1.01642268,92217.0,92216.0,0.05256]
[1765409706042,1.01642268,92217.0,92216.0,0.10575]
[1765409707141,0.51310268,92217.0,92216.0,0.10575]
[1765409707344,0.51310268,92217.0,92216.0,0.15155166]
[1765409707345,0.36196268,92217.0,92216.0,0.15155166]
[1765409709334,0.36196268,92217.0,92216.0,0.18080725]
[1765409712446,0.00116268,92217.0,92216.0,0.16350166]
[1765409712643,0.00116268,92217.0,92216.0,0.15155166]
[1765409713444,0.00116268,92217.0,92216.0,0.1807833]
[1765409714650,0.09947268,92217.0,92216.0,0.15155166]
[1765409714944,0.09947268,92217.0,92216.0,0.18078367]
[1765409715136,0.09947268,92217.0,92216.0,0.16994157]
[1765409715342,0.09947268,92217.0,92216.0,0.14070956]
[1765409716548,0.09947268,92217.0,92216.0,0.16994293]
[1765409727161,0.11031468,92217.0,92216.0,0.16994293]
[1765409728359,0.11031468,92217.0,92216.0,0.14070956]
[1765409736151,0.11031468,92217.0,92216.0,0.17976086]
[1765409737267,0.11031468,92217.0,92216.0,0.14070956]
[1765409739951,0.11031468,92217.0,92216.0,0.03695956]
[1765409740157,0.11031468,92217.0,92216.0,0.05418141]
[1765409740356,0.11031468,92217.0,92216.0,0.02489323]
[1765409740557,0.11031468,92217.0,92216.0,3.23e-06]
[1765409741162,0.11031468,92217.0,92203.0,0.02928818]
[1765409741163,0.11861,92204.0,92203.0,0.02928818]
[1765409741362,0.1022436,92203.0,92202.0,0.02928818]
[1765409741864,0.1022436,92203.0,92200.0,0.02928818]
[1765409741865,0.0914,92201.0,92200.0,0.02928818]
[1765409742056,0.129454,92200.0,92199.0,0.04912]
[1765409742965,0.490254,92200.0,92199.0,0.04912]
[1765409744359,0.491254,92200.0,92199.0,0.05512]
[1765409744559,0.493254,92200.0,92199.0,0.06212]
[1765409744858,0.493254,92200.0,92199.0,0.10792]
[1765409752680,0.493254,92200.0,92199.0,0.14043535]
[1765409753992,0.132454,92200.0,92199.0,0.14043535]
[1765409754165,0.493254,92200.0,92199.0,0.14043535]
[1765409755080,0.493254,92200.0,92199.0,0.10792]
[1765409755275,0.493254,92200.0,92199.0,0.06212]
[1765409755781,0.493254,92200.0,92199.0,0.10792]
[1765409755970,0.493254,92200.0,92199.0,0.06212]
[1765409756371,0.493254,92200.0,92199.0,0.013]
[1765409757779,0.493254,92200.0,92199.0,0.10792]
[1765409760289,0.493254,92200.0,92199.0,0.14043715]
[1765409764285,0.374644,92200.0,92199.0,0.15128125]
[1765409764494,0.003,92200.0,92199.0,0.15128125]
[1765409764691,0.3608,92209.0,92208.0,0.094463]
[1765409764893,0.3608,92209.0,92208.0,0.12698015]
[1765409765594,0.44319,92209.0,92208.0,0.12698015]
[1765409766491,0.44519,92209.0,92208.0,0.12798015]
[1765409766789,0.44519,92209.0,92208.0,0.11713715]
[1765409769186,0.44519,92209.0,92208.0,0.14635576]
[1765409771590,0.44519,92209.0,92208.0,0.11713715]
[1765409772398,0.44519,92209.0,92198.0,0.05873918]
[1765409772399,0.08027,92199.0,92198.0,0.00016268]
[1765409772584,0.44107,92199.0,92198.0,0.00016268]
[1765409773590,0.08027,92191.0,92190.0,0.00108472]
[1765409773791,0.451915,92191.0,92190.0,0.00108472]
[1765409774093,0.451915,92191.0,92172.0,0.02921861]
[1765409774094,0.0108472,92173.0,92172.0,0.02921861]
[1765409774295,0.0911172,92173.0,92172.0,0.07914]
[1765409775590,0.0911172,92173.0,92172.0,0.08014]
[1765409776700,0.0931172,92173.0,92172.0,0.08014]
[1765409785198,0.4539172,92173.0,92172.0,0.001]
[1765409785499,0.091118,92166.0,92165.0,0.00108502]
[1765409786312,0.08027,92149.0,92148.0,0.07914]
[1765409788105,0.08227,92149.0,92148.0,0.07914]
[1765409788298,0.08327,92149.0,92148.0,0.08014]
[1765409790006,0.08327,92149.0,92148.0,0.001]
[1765409790205,0.08327,92149.0,92148.0,0.03974]
[1765409790401,0.08327,92149.0,92148.0,0.07664]
[1765409801322,0.08327,92149.0,92148.0,0.10788845]
[1765409805027,0.09412,92149.0,92148.0,0.10788845]
[1765409809136,0.09412,92149.0,92148.0,0.07098845]
[1765409809722,0.09412,92149.0,92148.0,0.03224845]
[1765409811139,0.09412,92149.0,92148.0,0.07098845]
[1765409812836,0.09412,92149.0,92148.0,0.10788845]
[1765409813639,0.01385,92149.0,92148.0,0.10788845]
[1765409813942,0.08828,92149.0,92148.0,0.10788845]
[1765409814331,0.08828,92149.0,92148.0,0.13710706]
[1765409815337,0.01385,92149.0,92148.0,0.10788845]
[1765409815939,0.05158,92149.0,92148.0,0.10788845]
[1765409816337,0.05158,92149.0,92148.0,0.14693849]
[1765409816832,0.08828,92149.0,92148.0,0.14693849]
[1765409818734,0.003,92149.0,92148.0,0.14693849]
[1765409819635,0.0364,92149.0,92148.0,0.14693849]
[1765409819932,0.06978,92149.0,92148.0,0.14693849]
[1765409827349,0.06978,92149.0,92148.0,0.10788845]
[1765409827546,0.06978,92149.0,92148.0,0.10707881]
[1765409829454,0.003,92149.0,92148.0,0.14612885]
[1765409829758,0.01101168,92158.0,92157.0,0.06857]
[1765409829943,0.00016278,92158.0,92157.0,0.10985781]
[1765409831150,0.00116278,92158.0,92157.0,0.11085781]
[1765409831550,0.00516278,92158.0,92157.0,0.11085781]
[1765409831755,0.0799974,92172.0,92171.0,0.06627]
[1765409831960,0.0447974,92172.0,92171.0,0.09670881]
[1765409832258,0.0447974,92172.0,92171.0,0.12596397]
[1765409832645,0.0799974,92172.0,92171.0,0.12596397]
[1765409833350,0.0447974,92172.0,92171.0,0.12596397]
[1765409833553,0.0108474,92172.0,92171.0,0.09770881]
[1765409834450,0.0799974,92172.0,92171.0,0.09770881]
[1765409834857,0.0819974,92172.0,92171.0,0.03243881]
[1765409836553,0.0819974,92172.0,92171.0,0.09870881]
[1765409839455,0.0819974,92172.0,92171.0,0.03243881]
[1765409839960,0.0799983,92163.0,92162.0,0.00016278]
[1765409840152,0.4407983,92163.0,92162.0,0.00016278]
[1765409841153,0.4427983,92163.0,92162.0,0.00516278]
[1765409841652,0.4437983,92163.0,92162.0,0.01416278]
[1765409842162,0.4447983,92163.0,92162.0,0.00116278]
[1765409846263,0.1010299,92150.0,92149.0,0.06167256]
[1765409846458,0.1010299,92150.0,92148.0,0.02923256]
[1765409846758,0.0108505,92145.0,92144.0,0.02923256]
[1765409846964,0.0800005,92145.0,92144.0,0.02923256]
[1765409847161,0.0800009,92141.0,92140.0,0.10638408]
[1765409848566,0.0820009,92141.0,92140.0,0.11438408]
[1765409849859,0.0840009,92141.0,92140.0,0.11638408]
[1765409851966,0.0840009,92141.0,92140.0,0.11117829]
[1765409852269,0.0840009,92141.0,92140.0,0.15020706]
[1765409853165,0.0840009,92141.0,92140.0,0.11117829]
[1765409854264,0.0840009,92141.0,92140.0,0.14040101]
[1765409854469,0.0840009,92141.0,92140.0,0.10752829]
[1765409856167,0.0840009,92141.0,92140.0,0.13675101]
[1765409856969,0.0840009,92141.0,92140.0,0.10752829]
[1765409858664,0.0148509,92141.0,92140.0,0.10752829]
[1765409859174,0.0797109,92141.0,92140.0,0.10752829]
[1765409860373,0.0797109,92141.0,92140.0,0.04490829]
[1765409860574,0.0797109,92141.0,92140.0,0.10752829]
[1765409863062,0.0797109,92141.0,92140.0,0.07610829]
[1765409863568,0.0797109,92141.0,92140.0,0.10752829]
[1765409865484,0.0797109,92141.0,92140.0,0.03699569]
[1765409865779,0.0797109,92141.0,92140.0,0.09929641]
[1765409865966,0.0797109,92141.0,92140.0,0.03667641]
[1765409866167,0.0797109,92141.0,92140.0,0.03667657]
[1765409866672,0.0797109,92141.0,92140.0,0.03767657]
[1765409867074,0.0777109,92141.0,92140.0,0.03650386]
[1765409867274,0.0787109,92141.0,92140.0,0.03750386]
[1765409867982,0.0787109,92141.0,92140.0,0.10012386]
[1765409868279,0.0787109,92141.0,92140.0,0.06870386]
[1765409873386,0.0787109,92141.0,92140.0,0.10012386]
[1765409874688,0.0787109,92141.0,92140.0,0.09994139]
[1765409878094,0.0787109,92141.0,92140.0,0.09833139]
[1765409879186,0.0787109,92141.0,92140.0,0.06734139]
[1765409879381,0.0787109,92141.0,92140.0,0.03732139]
[1765409880491,0.0787109,92141.0,92140.0,0.06734139]
[1765409881096,0.0787109,92141.0,92129.0,0.0108523]
[1765409881097,0.08466,92130.0,92129.0,0.02926217]
[1765409881393,0.08466,92130.0,92124.0,0.03902877]
[1765409881394,0.0763039,92116.0,92115.0,0.06209561]
[1765409882297,0.07639562,92116.0,92115.0,0.06209561]
[1765409882993,0.07839562,92116.0,92115.0,0.06209561]
[1765409883395,0.00209172,92116.0,92115.0,0.06209561]
[1765409883787,0.00209172,92116.0,92115.0,0.47477561]
[1765409883987,0.00209172,92116.0,92115.0,0.07477561]
[1765409884187,0.00016278,92125.0,92124.0,0.0718629]
[1765409884593,0.03323278,92125.0,92124.0,0.06101]
[1765409884798,0.08482278,92125.0,92124.0,0.06101]
[1765409885195,0.08682278,92125.0,92124.0,0.06101]
[1765409885497,0.08882278,92125.0,92124.0,0.03002]
[1765409885697,0.08882278,92125.0,92124.0,0.06101]
[1765409886795,0.00416278,92125.0,92124.0,0.06101]
[1765409888904,0.06961278,92125.0,92124.0,0.06101]
[1765409889404,0.06961278,92125.0,92124.0,0.03002]
[1765409889590,0.06961278,92125.0,92115.0,0.00108561]
[1765409889591,0.0108533,92121.0,92120.0,0.0389956]
[1765409889792,0.0763039,92116.0,92115.0,0.06209561]
[1765409890196,0.0439239,92116.0,92115.0,0.06209561]
[1765409890705,0.0439239,92116.0,92102.0,0.03709561]
[1765409890706,0.08466,92106.0,92102.0,0.03709561]
[1765409890896,0.0763068,92091.0,92085.0,0.05854316]
[1765409891097,0.0763068,92091.0,92076.0,0.3608]
[1765409891608,0.0763068,92091.0,92076.0,0.3716585]
[1765409891796,0.0763068,92091.0,92080.0,0.0108581]
[1765409892198,0.0783068,92091.0,92076.0,0.3608]
[1765409892607,0.16720933,92091.0,92076.0,0.3608]
[1765409893005,0.0783068,92091.0,92090.0,0.0620959]
[1765409893206,0.0459268,92091.0,92090.0,0.0620959]
[1765409893806,0.0803068,92091.0,92090.0,0.0630959]
[1765409894612,0.0823068,92091.0,92090.0,0.0620959]
[1765409894796,0.0823068,92091.0,92090.0,0.0311059]
[1765409895105,0.0823068,92091.0,92090.0,0.0010859]
[1765409895297,0.0803068,92091.0,92090.0,0.0010859]
[1765409895502,0.0843068,92091.0,92090.0,0.0010859]
[1765409900504,0.0843068,92091.0,92065.0,0.0620062]
[1765409900505,0.0108598,92066.0,92065.0,0.0620062]
[1765409900702,0.0715098,92066.0,92065.0,0.0728661]
[1765409901022,0.0108598,92066.0,92065.0,0.0728661]
[1765409901205,0.0108594,92069.0,92068.0,0.06092]
[1765409902014,0.0412394,92069.0,92068.0,0.06092]
[1765409902507,0.0108594,92069.0,92068.0,0.0717795]
[1765409902813,0.002,92069.0,92068.0,0.0717795]
[1765409904012,0.004,92069.0,92068.0,0.0727795]
[1765409904912,0.06465,92069.0,92068.0,0.0727795]
[1765409905120,0.03438,92069.0,92068.0,0.0727795]
[1765409905414,0.004,92069.0,92068.0,0.0727795]
[1765409906202,0.03438,92069.0,92068.0,0.0727795]
[1765409906403,0.004,92069.0,92068.0,0.0727795]
[1765409906811,0.06465,92069.0,92068.0,0.06192]
[1765409907801,0.0755094,92069.0,92068.0,0.06192]
[1765409914126,0.0755094,92069.0,92068.0,0.001]
[1765409914314,0.0755094,92069.0,92068.0,0.03309]
[1765409914514,0.0755094,92069.0,92068.0,0.06457]
[1765409914726,0.16306952,92069.0,92068.0,0.06457]
[1765409914925,0.0755094,92069.0,92068.0,0.06457]
[1765409917930,0.0758094,92069.0,92068.0,0.06457]
[1765409918220,0.0758094,92069.0,92068.0,0.09518255]
[1765409921831,0.0148594,92069.0,92068.0,0.09518255]
[1765409922129,0.0148594,92069.0,92068.0,0.13421012]
[1765409922331,0.004,92069.0,92068.0,0.49501183]
[1765409922531,0.004,92069.0,92068.0,0.45598255]
[1765409923522,0.004,92069.0,92068.0,0.51452571]
[1765409925027,0.00016287,92075.0,92074.0,0.0744288]
[1765409925227,0.00016287,92075.0,92074.0,0.16361096]
[1765409925429,0.06111287,92075.0,92074.0,0.09418255]
[1765409926330,0.06211287,92075.0,92074.0,0.09418255]
[1765409926532,0.06211287,92075.0,92074.0,0.13323199]
[1765409926721,0.42291287,92075.0,92074.0,0.03061255]
[1765409927328,0.42391287,92075.0,92074.0,0.03161255]
[1765409930633,0.42391287,92075.0,92074.0,0.06370255]
[1765409930840,0.42391287,92075.0,92074.0,0.03161255]
[1765409935538,0.42391287,92075.0,92074.0,0.00924585]
[1765409935745,0.42391287,92075.0,92074.0,0.001]
[1765409936443,0.0718098,92066.0,92065.0,0.0010862]
[1765409936640,0.4326098,92066.0,92065.0,0.0010862]
[1765409937246,0.4326098,92066.0,92065.0,0.0646562]
[1765409937745,0.4346098,92066.0,92065.0,0.0351762]
[1765409938242,0.4346098,92066.0,92065.0,0.0666562]
[1765409938641,0.4366098,92066.0,92065.0,0.0351762]
[1765409939938,0.4366098,92066.0,92065.0,0.0030862]
[1765409940544,0.4366098,92066.0,92065.0,0.0328062]
[1765409941046,0.4366098,92066.0,92065.0,0.0030862]
[1765409941229,0.4366098,92066.0,92065.0,0.0328062]
[1765409941747,0.4366098,92066.0,92065.0,0.0030862]
[1765409942149,0.4366098,92066.0,92065.0,0.0018362]
[1765409942537,0.4366098,92066.0,92065.0,0.0622062]
[1765409947548,0.004,92066.0,92065.0,0.0928663]
[1765409950451,0.06404,92066.0,92065.0,0.0928663]
[1765409951046,0.03492,92066.0,92065.0,0.0928663]
[1765409951552,0.06404,92066.0,92065.0,0.0928663]
[1765409952138,0.06404,92066.0,92065.0,0.13190924]
[1765409952549,0.06404,92066.0,92065.0,0.0928663]
[1765409952749,0.06404,92066.0,92065.0,0.0324963]
[1765409952951,0.06404,92066.0,92065.0,0.06178044]
[1765409953146,0.06404,92066.0,92065.0,0.0324963]
[1765409953856,0.06404,92066.0,92065.0,0.0622163]
[1765409954452,0.06404,92066.0,92065.0,0.0324963]
[1765409956158,0.06404,92066.0,92065.0,0.0608163]
[1765409956457,0.06404,92066.0,92065.0,0.0908863]
[1765409957153,0.06404,92066.0,92065.0,0.0324963]
[1765409957859,0.06404,92066.0,92065.0,0.0908863]
[1765409960447,0.06404,92066.0,92065.0,0.0324963]
[1765409961362,0.06404,92066.0,92065.0,0.0608163]
[1765409961564,0.06404,92066.0,92065.0,0.0908863]
[1765409965069,0.06404,92066.0,92065.0,0.0608163]
[1765409965269,0.06404,92066.0,92065.0,0.0908863]
[1765409965469,0.06404,92066.0,92065.0,0.0608163]
[1765409966775,0.06404,92066.0,92065.0,0.0324963]
[1765409967470,0.06354,92066.0,92065.0,0.0324963]
[1765409969375,0.42434,92066.0,92065.0,0.0608163]
[1765409969966,0.42434,92066.0,92065.0,0.0324963]
[1765409971266,0.51028739,92066.0,92065.0,0.0324963]
[1765409971467,0.51028739,92066.0,92065.0,0.0613863]
[1765409971667,0.51028739,92066.0,92065.0,0.0897463]
[1765409981087,0.42434,92066.0,92065.0,0.0897463]
[1765409981283,0.0035,92066.0,92065.0,0.0897463]
[1765409981688,0.0108589,92074.0,92073.0,0.05725]
[1765409981986,0.0108589,92074.0,92073.0,0.0879101]
[1765409982191,0.00016287,92075.0,92074.0,0.05725]
[1765409982377,0.00016287,92075.0,92074.0,0.0879101]
[1765409983377,0.00116287,92075.0,92074.0,0.0879101]
[1765409983688,0.00216287,92075.0,92074.0,0.11820855]
[1765409983982,0.00216287,92075.0,92074.0,0.0889101]
[1765409984191,0.00216287,92075.0,92074.0,0.11819988]
[1765409986289,0.00216287,92075.0,92074.0,0.0889101]
[1765409996589,0.0010859,92090.0,92089.0,0.0681071]
[1765409996790,0.0010859,92090.0,92089.0,0.09867299]
[1765409997187,0.0780959,92090.0,92089.0,0.09867299]
[1765409997787,0.0820959,92090.0,92089.0,0.09967299]
[1765409997982,0.0817959,92090.0,92089.0,0.08881589]
[1765409998688,0.0837959,92090.0,92089.0,0.002]
[1765409999079,0.0837959,92090.0,92089.0,0.03083]
[1765409999483,0.0837959,92090.0,92089.0,0.002]
[1765410001688,0.05795,92081.0,92080.0,0.00016287]
[1765410001890,0.41875,92081.0,92080.0,0.00016287]
[1765410002393,0.41875,92081.0,92080.0,0.02899287]
[1765410002779,0.41875,92081.0,92080.0,0.02999287]
[1765410002981,0.41975,92081.0,92080.0,0.03099287]
[1765410003186,0.430608,92081.0,92080.0,0.05891287]
[1765410009290,0.430608,92081.0,92080.0,0.0913783]
[1765410014996,0.430608,92081.0,92080.0,0.0634583]
[1765410015790,0.430608,92081.0,92080.0,0.0346283]
[1765410016697,0.5191728,92081.0,92080.0,0.0346283]
[1765410017195,0.5191728,92081.0,92080.0,0.03481598]
[1765410018098,0.5191728,92081.0,92080.0,0.06484598]
[1765410018399,0.5191728,92081.0,92080.0,0.09406598]
[1765410018792,0.5191728,92081.0,92080.0,0.03481598]
[1765410019194,0.430608,92081.0,92080.0,0.03481598]
[1765410019400,0.430608,92081.0,92080.0,0.06484598]
[1765410019601,0.430608,92081.0,92080.0,0.03481598]
[1765410020799,0.430608,92081.0,92080.0,0.00216287]
[1765410023807,0.430608,92081.0,92080.0,0.03219287]
[1765410024503,0.430608,92081.0,92080.0,0.00216287]
[1765410025303,0.430608,92081.0,92080.0,0.03219287]
[1765410026104,0.430608,92081.0,92080.0,0.00216287]
[1765410027104,0.430608,92081.0,92080.0,0.09387063]
[1765410030306,0.430608,92081.0,92080.0,0.06465063]
[1765410030605,0.430608,92081.0,92080.0,0.03462063]
[1765410031509,0.430608,92081.0,92080.0,0.06420063]
[1765410032411,0.3618,92081.0,92080.0,0.09188063]
[1765410032605,0.0007859,92090.0,92089.0,0.0681171]
[1765410032905,0.0007859,92090.0,92089.0,0.10057486]
[1765410033402,0.0007859,92090.0,92089.0,0.15919533]
[1765410033796,0.0047859,92090.0,92089.0,0.16019533]
[1765410034002,0.0057859,92090.0,92089.0,0.16119533]
[1765410034202,0.0057859,92090.0,92089.0,0.10257486]
[1765410034392,0.0047859,92090.0,92089.0,0.10157486]
[1765410034597,0.0027859,92090.0,92089.0,0.10257486]
[1765410034994,0.0027859,92090.0,92089.0,0.16119533]
[1765410035204,0.0027859,92090.0,92089.0,0.10257486]
[1765410036398,0.0897528,92090.0,92089.0,0.10257486]
[1765410036606,0.0788959,92090.0,92089.0,0.10257486]
[1765410036904,0.0897528,92090.0,92089.0,0.10257486]
[1765410037098,0.0788959,92090.0,92089.0,0.10257486]
[1765410037300,0.0788959,92090.0,92089.0,0.14155727]
[1765410038009,0.0027859,92090.0,92089.0,0.10257486]
[1765410039105,0.00016287,92099.0,92098.0,0.068116]
[1765410039412,0.04652,92105.0,92104.0,0.0681153]
[1765410039600,0.04652,92105.0,92104.0,0.10045107]
[1765410039802,0.07611,92105.0,92104.0,0.10045107]
[1765410040611,0.07811,92105.0,92104.0,0.10145107]
[1765410041112,0.07811,92105.0,92104.0,0.0691153]
[1765410041307,0.07811,92105.0,92104.0,0.05826]
[1765410041806,0.06141,92105.0,92104.0,0.05826]
[1765410042009,0.06441,92105.0,92104.0,0.05926]
[1765410042213,0.005,92105.0,92104.0,0.05926]
[1765410042406,0.005,92105.0,92104.0,0.09157427]
[1765410042717,0.06441,92105.0,92104.0,0.09157427]
[1765410043214,0.0752652,92105.0,92104.0,0.09157427]
[1765410047312,0.0752652,92105.0,92104.0,0.05926]
[1765410048617,0.0752652,92105.0,92104.0,0.0914701]
[1765410049115,0.0752652,92105.0,92104.0,0.05926]
[1765410049514,0.0752652,92105.0,92104.0,0.0914693]
[1765410049713,0.0752652,92105.0,92104.0,0.05926]
[1765410049905,0.0752652,92105.0,92104.0,0.09146946]
[1765410050106,0.0752652,92105.0,92104.0,0.05926]
[1765410050509,0.0752652,92105.0,92104.0,0.09147002]
[1765410050702,0.0752652,92105.0,92104.0,0.05926]
[1765410051108,0.0752652,92105.0,92104.0,0.09147188]
[1765410051309,0.06441,92105.0,92104.0,0.09147188]
[1765410052416,0.005,92105.0,92104.0,0.09147188]
[1765410052615,0.00016287,92114.0,92113.0,0.0108542]
[1765410052809,0.00016287,92114.0,92113.0,0.5720342]
[1765410053002,0.00016287,92114.0,92113.0,0.60424719]
[1765410053210,0.07611,92125.0,92124.0,0.05726]
[1765410054215,0.07611,92125.0,92124.0,0.4289129]
[1765410054414,0.07611,92125.0,92124.0,0.46111016]
[1765410055319,0.07911,92125.0,92124.0,0.46211016]
[1765410055707,0.07811,92125.0,92124.0,0.46211016]
[1765410057313,0.07611,92125.0,92124.0,0.46211016]
[1765410057612,0.07711,92125.0,92124.0,0.46311016]
[1765410057821,0.07711,92125.0,92124.0,0.46211016]
[1765410058022,0.07711,92125.0,92124.0,0.46311016]
[1765410060417,0.07711,92125.0,92124.0,0.45225726]
[1765410060616,0.43791,92125.0,92124.0,0.03419726]
[1765410060820,0.43791,92125.0,92124.0,0.002]
[1765410065029,0.0698845,92111.0,92110.0,0.39001632]
[1765410065224,0.0698845,92111.0,92110.0,0.09089017]
[1765410065419,0.0698845,92111.0,92110.0,0.09107385]
[1765410066528,0.0718845,92111.0,92110.0,0.09907385]
[1765410067430,0.0728845,92111.0,92110.0,0.11007385]
[1765410069232,0.0728845,92111.0,92110.0,0.13929017]
[1765410071635,0.0138545,92111.0,92110.0,0.13929017]
[1765410071833,0.0702745,92111.0,92110.0,0.13929017]
[1765410072028,0.05942,92111.0,92110.0,0.13929017]
[1765410074636,0.05942,92111.0,92110.0,0.11007385]
[1765410075840,0.05942,92111.0,92110.0,0.14902895]
[1765410077148,0.05942,92111.0,92110.0,0.11007385]
[1765410086144,0.05942,92111.0,92110.0,0.14902895]
[1765410088136,0.05942,92111.0,92110.0,0.11007385]
[1765410090038,0.05942,92111.0,92110.0,0.16869638]
[1765410093948,0.05942,92111.0,92110.0,0.17955098]
[1765410094350,0.05942,92111.0,92110.0,0.12092845]
[1765410094649,0.05942,92111.0,92110.0,0.16871141]
[1765410097449,0.05942,92111.0,92110.0,0.11007385]
[1765410098240,0.05942,92111.0,92110.0,0.12092845]
[1765410098949,0.05942,92111.0,92110.0,0.11007385]
[1765410099754,0.05942,92111.0,92110.0,0.12092845]
[1765410100150,0.05942,92111.0,92110.0,0.08067385]
[1765410100854,0.05942,92111.0,92110.0,0.11976674]
[1765410101045,0.05942,92111.0,92110.0,0.14758674]
[1765410102248,0.05942,92111.0,92110.0,0.15844134]
[1765410103246,0.05942,92111.0,92110.0,0.11934845]
[1765410109052,0.03069,92111.0,92110.0,0.11934845]
[1765410109253,0.05833,92111.0,92110.0,0.11934845]
[1765410109455,0.003,92111.0,92110.0,0.48014845]
[1765410109660,0.04655,92128.0,92127.0,0.05599]
[1765410109857,0.04655,92128.0,92127.0,0.08815385]
[1765410110057,0.07419,92128.0,92127.0,0.08815385]
[1765410110755,0.07419,92128.0,92127.0,0.08915385]
[1765410110956,0.07619,92128.0,92127.0,0.08915385]
[1765410111663,0.07719,92128.0,92127.0,0.08915385]
[1765410111958,0.03217,92128.0,92127.0,0.08915385]
[1765410112158,0.003,92128.0,92127.0,0.08915385]
[1765410112652,0.05981,92128.0,92127.0,0.08915385]
[1765410112854,0.07719,92128.0,92127.0,0.08915385]
[1765410113853,0.003,92128.0,92127.0,0.08915385]
[1765410115248,0.003,92128.0,92127.0,0.12814836]
[1765410116359,0.003,92128.0,92127.0,0.08915385]
[1765410116962,0.00016287,92134.0,92133.0,0.0668419]
[1765410117156,0.00108531,92140.0,92139.0,0.0668412]
[1765410117356,0.07419,92150.0,92149.0,0.06684]
[1765410117553,0.07419,92150.0,92149.0,0.60280385]
[1765410118058,0.04655,92150.0,92149.0,0.60280385]
[1765410118261,0.07419,92150.0,92149.0,0.60280385]
[1765410118959,0.07519,92150.0,92149.0,0.60280385]
[1765410119160,0.07519,92150.0,92149.0,0.59195385]
[1765410119465,0.07519,92150.0,92149.0,0.55979]
[1765410119665,0.07719,92150.0,92149.0,0.56079]
[1765410120260,0.07719,92150.0,92149.0,0.02917]
[1765410120467,0.07719,92150.0,92149.0,0.001]
[1765410120858,0.07719,92150.0,92149.0,0.02908]
[1765410121061,0.003,92150.0,92149.0,0.05825]
[1765410121261,0.003,92150.0,92149.0,0.45263557]